{"text_format":"1","workbook":"xlsx","n_sheets":3,"sheets":["★入力マニュアル★","賞与支払届","賞与支払届 (2)"],"not_rendered":{"charts":0,"images":5,"macros":1,"external_links":0,"defined_names":3,"comments":0,"pivot_tables":0},"unopened":[],"bounds":{"document_bytes":16777216,"sheet_cells":100000,"rows_first":2000,"rows_last":500,"rows_between":2000,"halvings":0,"cell_chars":16384,"cell_head_chars":4096},"cells_cut":0,"cells_raw":0,"read":"whole","date_system":"1900"}

{"sheet":"★入力マニュアル★","index":0,"n_rows":66,"n_cols":4,"rows_kept":66,"cut":false,"hidden":false,"merged":[[0,0,0,35]]}
["賞与支払届（Excel)入力マニュアル"]
[]
[]
[]
[]
[null,"①",null,"の項目を入力"]
[]
[null,"提出年月日"]
[null,"健康保険の記号"]
[null,"提出者記入欄"]
[null,"賞与支払年月日（共通）"]
[null,"健康保険被保険者証の番号"]
[null,"（年金整理番号）"]
[null,"被保険者氏名"]
[null,"生年月日"]
[null,"賞与支払額（通貨）"]
[null,"（賞与支払（現物）は支給ある場合のみ入力））"]
[]
[]
[]
[]
[]
[]
[]
[]
[null,"②","社会保険労務士が入力する場合は、 社会保険労務士記載欄を入力"]
[]
[]
[]
[]
[]
[]
[]
[]
[]
[]
[]
[]
[]
[null,"③","備考の該当者いる場合は該当する項目にチェックを入れる"]
[]
[]
[]
[]
[]
[]
[]
[]
[]
[]
[]
[]
[]
[]
[]
[]
[null,"④","賞与支払日（共通）と支払日が異なる被保険者がいる場合は支払日を入力"]
[]
[]
[]
[]
[]
[]
[]
[]
[null,null,"全て入力したら、印刷して提出"]

{"sheet":"賞与支払届","index":1,"n_rows":158,"n_cols":84,"rows_kept":158,"cut":false,"hidden":false,"merged":[[153,78,154,79],[153,80,154,80],[10,1,12,4],[10,5,12,7],[146,58,147,59],[146,60,148,60],[146,61,148,62],[146,63,148,81],[149,58,150,59],[150,60,152,60],[150,61,152,62],[150,63,152,74],[10,18,12,19],[16,11,17,12],[16,13,17,17],[16,18,17,19],[16,20,17,26],[14,5,25,10],[18,11,25,40],[26,4,33,10],[26,11,33,40],[14,43,17,54],[14,11,15,28],[20,43,22,54],[2,73,4,77],[2,78,4,82],[6,15,8,22],[6,26,8,47],[10,8,12,9],[10,10,12,12],[10,13,12,14],[10,15,12,17],[2,14,5,22],[2,23,5,48],[2,51,4,56],[2,57,4,62],[2,63,4,67],[2,68,4,72],[38,78,40,80],[40,13,41,17],[40,18,41,18],[40,19,41,24],[40,25,41,25],[40,26,41,30],[33,44,35,63],[34,11,39,32],[35,33,41,40],[36,44,37,63],[38,44,41,77],[40,5,41,10],[34,5,39,10],[51,5,54,21],[51,22,54,44],[56,22,59,44],[56,45,59,57],[43,22,46,44],[43,45,46,57],[43,5,46,21],[56,5,59,21],[47,5,49,21],[47,22,49,44],[47,45,49,57],[60,5,61,21],[60,22,62,26],[60,33,62,37],[60,45,61,56],[62,5,64,7],[59,58,60,59],[63,80,64,80],[63,43,64,44],[63,54,64,56],[63,57,64,57],[63,62,64,68],[63,69,64,77],[63,78,64,79],[62,45,64,53],[70,5,71,21],[70,22,72,26],[70,33,72,37],[70,45,71,56],[73,69,74,77],[69,58,70,59],[63,8,64,10],[63,11,64,12],[63,13,64,15],[63,16,64,17],[63,18,64,20],[63,21,64,21],[63,22,64,30],[63,31,64,32],[63,33,64,42],[66,22,69,44],[66,45,69,57],[66,5,69,21],[72,5,74,7],[72,45,74,53],[73,8,74,10],[73,11,74,12],[73,13,74,15],[73,16,74,17],[73,18,74,20],[73,21,74,21],[73,22,74,30],[73,78,74,79],[73,80,74,80],[76,22,79,44],[76,45,79,57],[73,31,74,32],[73,33,74,42],[73,43,74,44],[73,54,74,56],[73,57,74,57],[73,62,74,68],[79,58,80,59],[80,5,81,21],[80,22,82,26],[80,33,82,37],[80,45,81,56],[82,5,84,7],[82,45,84,53],[83,62,84,68],[83,69,84,77],[83,78,84,79],[83,8,84,10],[83,11,84,12],[83,13,84,15],[83,16,84,17],[83,18,84,20],[83,21,84,21],[83,22,84,30],[83,31,84,32],[83,33,84,42],[83,43,84,44],[83,54,84,56],[83,57,84,57],[76,61,78,62],[76,63,78,81],[80,60,82,60],[80,61,82,62],[80,63,82,74],[83,80,84,80],[90,5,91,21],[90,22,92,26],[90,33,92,37],[90,45,91,56],[92,5,94,7],[93,43,94,44],[93,54,94,56],[93,57,94,57],[93,62,94,68],[92,45,94,53],[93,8,94,10],[93,11,94,12],[93,13,94,15],[93,16,94,17],[89,58,90,59],[93,18,94,20],[93,21,94,21],[86,22,89,44],[86,45,89,57],[86,58,87,59],[86,60,88,60],[100,5,101,21],[100,22,102,26],[100,33,102,37],[100,45,101,56],[102,5,104,7],[103,8,104,10],[103,11,104,12],[103,13,104,15],[103,16,104,17],[103,18,104,20],[103,21,104,21],[96,5,99,21],[86,5,89,21],[90,60,92,60],[100,60,102,60],[100,61,102,62],[100,63,102,74],[93,22,94,30],[99,58,100,59],[93,31,94,32],[93,33,94,42],[96,22,99,44],[96,45,99,57],[93,69,94,77],[102,45,104,53],[103,22,104,30],[103,80,104,80],[106,22,109,44],[106,45,109,57],[103,31,104,32],[103,33,104,42],[103,43,104,44],[103,54,104,56],[103,57,104,57],[103,62,104,68],[109,58,110,59],[106,63,108,81],[110,60,112,60],[110,61,112,62],[110,63,112,74],[103,69,104,77],[106,58,107,59],[106,60,108,60],[106,61,108,62],[113,62,114,68],[113,8,114,10],[113,11,114,12],[113,13,114,15],[113,16,114,17],[113,18,114,20],[113,21,114,21],[113,78,114,79],[103,78,104,79],[113,33,114,42],[113,43,114,44],[113,54,114,56],[113,57,114,57],[106,5,109,21],[113,22,114,30],[113,31,114,32],[120,5,121,21],[120,22,122,26],[120,33,122,37],[120,45,121,56],[122,5,124,7],[123,43,124,44],[123,54,124,56],[110,5,111,21],[110,22,112,26],[110,33,112,37],[110,45,111,56],[112,5,114,7],[112,45,114,53],[123,57,124,57],[123,62,124,68],[122,45,124,53],[123,8,124,10],[123,11,124,12],[123,13,124,15],[123,16,124,17],[119,58,120,59],[123,18,124,20],[123,21,124,21],[116,22,119,44],[116,45,119,57],[130,5,131,21],[130,22,132,26],[130,33,132,37],[130,45,131,56],[133,69,134,77],[130,60,132,60],[130,61,132,62],[130,63,132,74],[123,22,124,30],[129,58,130,59],[123,31,124,32],[123,33,124,42],[126,22,129,44],[126,45,129,57],[123,69,124,77],[132,5,134,7],[132,45,134,53],[133,8,134,10],[133,11,134,12],[133,13,134,15],[133,16,134,17],[133,18,134,20],[133,21,134,21],[133,22,134,30],[143,80,144,80],[136,58,137,59],[136,60,138,60],[136,61,138,62],[133,78,134,79],[133,80,134,80],[136,22,139,44],[136,45,139,57],[133,31,134,32],[133,33,134,42],[133,43,134,44],[133,54,134,56],[133,57,134,57],[133,62,134,68],[139,58,140,59],[140,5,141,21],[140,22,142,26],[140,33,142,37],[140,45,141,56],[142,5,144,7],[142,45,144,53],[143,62,144,68],[143,69,144,77],[143,78,144,79],[140,60,142,60],[140,61,142,62],[140,63,142,74],[146,22,149,44],[146,45,149,57],[143,22,144,30],[143,31,144,32],[143,33,144,42],[143,43,144,44],[143,54,144,56],[143,57,144,57],[143,8,144,10],[143,11,144,12],[143,13,144,15],[143,16,144,17],[143,18,144,20],[143,21,144,21],[157,62,159,71],[153,43,154,44],[153,54,154,56],[153,57,154,57],[152,45,154,53],[150,5,151,21],[150,22,152,26],[150,33,152,37],[150,45,151,56],[152,5,154,7],[153,8,154,10],[153,11,154,12],[153,13,154,15],[153,16,154,17],[153,18,154,20],[153,21,154,21],[153,22,154,30],[153,31,154,32],[153,33,154,42],[153,62,154,68],[153,69,154,77],[76,5,79,21],[146,5,149,21],[136,5,139,21],[126,5,129,21],[116,5,119,21],[43,60,49,81],[56,60,58,60],[56,61,58,62],[56,63,58,81],[60,63,62,74],[60,60,62,60],[60,61,62,62],[56,58,57,59],[66,60,68,60],[66,58,67,59],[66,61,68,62],[66,63,68,81],[70,60,72,60],[70,61,72,62],[70,63,72,74],[76,58,77,59],[76,60,78,60],[86,61,88,62],[86,63,88,81],[90,61,92,62],[90,63,92,74],[96,58,97,59],[96,60,98,60],[96,61,98,62],[96,63,98,81],[93,80,94,80],[93,78,94,79],[136,63,138,81],[116,58,117,59],[116,60,118,60],[116,61,118,62],[116,63,118,81],[120,60,122,60],[120,61,122,62],[120,63,122,74],[126,58,127,59],[126,60,128,60],[126,61,128,62],[126,63,128,81],[123,80,124,80],[123,78,124,79],[113,80,114,80],[113,69,114,77]]}
[1,null,null,null,null,null,null,null,null,null,null,null,null,null,null,null,null,null,null,null,null,null,null,null,null,null,null,null,null,null,null,null,null,null,null,null,null,null,null,null,null,null,null,null,null,null,null,null,null,null,null,null,null,null,null,null,null,null,null,null,null,null,null,null,null,null,null,null,null,null,null,null,null,null,null,null,null,null,null,null,null,null,null,1]
[]
[null,null,null,null,null,null,null,null,null,null,null,null,null,null,"健康保険",null,null,null,null,null,null,null,null,"被保険者賞与支払届",null,null,null,null,null,null,null,null,null,null,null,null,null,null,null,null,null,null,null,null,null,null,null,null,null,null,null,"常務理事",null,null,null,null,null,"事務(局)長",null,null,null,null,null,"部　長",null,null,null,null,"課　長",null,null,null,null,"課長補佐",null,null,null,null,"担当者"]
[]
[]
[]
[]
[]
[]
[]
[null,"令和",null,null,null,null,null,null,"年",null,null,null,null,"月",null,null,null,null,"日"]
[]
[]
[]
[null,null,null,null,null,"事業所\n所在地",null,null,null,null,null,null,null,null,null,null,null,null,null,null,null,null,null,null,null,null,null,null,null,null,null,null,null,null,null,null,null,null,null,null,null,null,null,"健康保険の記号"]
[]
[null,null,null,null,null,null,null,null,null,null,null,"〒",null,null,null,null,null,null,"―"]
[]
[]
[]
[]
[]
[]
[]
[]
[]
[null,null,null,null,"事業所\n名　称"]
[]
[]
[]
[]
[]
[]
[null,null,null,null,null,null,null,null,null,null,null,null,null,null,null,null,null,null,null,null,null,null,null,null,null,null,null,null,null,null,null,null,null,null,null,null,null,null,null,null,null,null,null,null,"社会保険労務士記載欄"]
[null,null,null,null,null,"事業主\n氏　名"]
[]
[null,null,null,null,null,null,null,null,null,null,null,null,null,null,null,null,null,null,null,null,null,null,null,null,null,null,null,null,null,null,null,null,null,null,null,null,null,null,null,null,null,null,null,null,"　　氏　　名　　等"]
[]
[]
[]
[null,null,null,null,null,"電話番号"]
[]
[]
[null,null,null,null,null,"①　健康保険被保険者等番号",null,null,null,null,null,null,null,null,null,null,null,null,null,null,null,null,"②　被保険者氏名",null,null,null,null,null,null,null,null,null,null,null,null,null,null,null,null,null,null,null,null,null,null,"③　生年月日",null,null,null,null,null,null,null,null,null,null,null,null,null,null,"⑦　備考"]
[]
[]
[]
[null,null,null,null,null,"④　賞与支払年月日",null,null,null,null,null,null,null,null,null,null,null,null,null,null,null,null,"⑤　賞与支払額",null,null,null,null,null,null,null,null,null,null,null,null,null,null,null,null,null,null,null,null,null,null,"⑥　賞与額（千円未満は切捨て）"]
[]
[]
[]
[null,null,null,null,null,"④　賞与支払年月日（共通）"]
[]
[]
[]
[]
[null,null,null,null,null,null,null,null,null,null,null,null,null,null,null,null,null,null,null,null,null,null,null,null,null,null,null,null,null,null,null,null,null,null,null,null,null,null,null,null,null,null,null,null,null,null,null,null,null,null,null,null,null,null,null,null,null,null,"⑦",null,1,null,null,"二以上勤務"]
[]
[]
[]
[null,null,null,null,null,"④※上記「賞与支払年月日（共通）」と同じ場合は記入不要です。",null,null,null,null,null,null,null,null,null,null,null,null,null,null,null,null,"⑤  ㋐(通貨)",null,null,null,null,null,null,null,null,null,null," ㋑(現物)",null,null,null,null,null,null,null,null,null,null,null,"⑥(合計㋐+㋑) 千円未満は切捨て",null,null,null,null,null,null,null,null,null,null,null,null,null,null,2,null,null,"同一月内の賞与合算"]
[]
[null,null,null,null,null,"令和",null,null,null,null,null,null,null,null,null,null,null,null,null,null,null,null,null,null,null,null,null,null,null,null,null,null,null,null,null,null,null,null,null,null,null,null,null,null,null,{"$f":"IF(W64=\"\",\"\",ROUNDDOWN((W64+AH64),-3)/1000)","v":""}]
[null,null,null,null,null,null,null,null,null,null,null,"年",null,null,null,null,"月",null,null,null,null,"日",null,null,null,null,null,null,null,null,null,"円",null,null,null,null,null,null,null,null,null,null,null,"円",null,null,null,null,null,null,null,null,null,null,",000",null,null,"円",null,null,null,null,"（初回支払日：",null,null,null,null,null,null,null,null,null,null,null,null,null,null,null,"）"]
[]
[]
[null,null,null,null,null,null,null,null,null,null,null,null,null,null,null,null,null,null,null,null,null,null,null,null,null,null,null,null,null,null,null,null,null,null,null,null,null,null,null,null,null,null,null,null,null,null,null,null,null,null,null,null,null,null,null,null,null,null,"⑦",null,1,null,null,"二以上勤務"]
[]
[]
[]
[null,null,null,null,null,"④※上記「賞与支払年月日（共通）」と同じ場合は記入不要です。",null,null,null,null,null,null,null,null,null,null,null,null,null,null,null,null,"⑤  ㋐(通貨)",null,null,null,null,null,null,null,null,null,null," ㋑(現物)",null,null,null,null,null,null,null,null,null,null,null,"⑥(合計㋐+㋑) 千円未満は切捨て",null,null,null,null,null,null,null,null,null,null,null,null,null,null,2,null,null,"同一月内の賞与合算"]
[]
[null,null,null,null,null,"令和",null,null,null,null,null,null,null,null,null,null,null,null,null,null,null,null,null,null,null,null,null,null,null,null,null,null,null,null,null,null,null,null,null,null,null,null,null,null,null,{"$f":"IF(W74=\"\",\"\",ROUNDDOWN((W74+AH74),-3)/1000)","v":""}]
[null,null,null,null,null,null,null,null,null,null,null,"年",null,null,null,null,"月",null,null,null,null,"日",null,null,null,null,null,null,null,null,null,"円",null,null,null,null,null,null,null,null,null,null,null,"円",null,null,null,null,null,null,null,null,null,null,",000",null,null,"円",null,null,null,null,"（初回支払日：",null,null,null,null,null,null,null,null,null,null,null,null,null,null,null,"）"]
[]
[]
[null,null,null,null,null,null,null,null,null,null,null,null,null,null,null,null,null,null,null,null,null,null,null,null,null,null,null,null,null,null,null,null,null,null,null,null,null,null,null,null,null,null,null,null,null,null,null,null,null,null,null,null,null,null,null,null,null,null,"⑦",null,1,null,null,"二以上勤務"]
[]
[]
[]
[null,null,null,null,null,"④※上記「賞与支払年月日（共通）」と同じ場合は記入不要です。",null,null,null,null,null,null,null,null,null,null,null,null,null,null,null,null,"⑤  ㋐(通貨)",null,null,null,null,null,null,null,null,null,null,"　㋑(現物)",null,null,null,null,null,null,null,null,null,null,null,"⑥(合計㋐+㋑) 千円未満は切捨て",null,null,null,null,null,null,null,null,null,null,null,null,null,null,2,null,null,"同一月内の賞与合算"]
[]
[null,null,null,null,null,"令和",null,null,null,null,null,null,null,null,null,null,null,null,null,null,null,null,null,null,null,null,null,null,null,null,null,null,null,null,null,null,null,null,null,null,null,null,null,null,null,{"$f":"IF(W84=\"\",\"\",ROUNDDOWN((W84+AH84),-3)/1000)","v":""}]
[null,null,null,null,null,null,null,null,null,null,null,"年",null,null,null,null,"月",null,null,null,null,"日",null,null,null,null,null,null,null,null,null,"円",null,null,null,null,null,null,null,null,null,null,null,"円",null,null,null,null,null,null,null,null,null,null,",000",null,null,"円",null,null,null,null,"（初回支払日：",null,null,null,null,null,null,null,null,null,null,null,null,null,null,null,"）"]
[]
[]
[null,null,null,null,null,null,null,null,null,null,null,null,null,null,null,null,null,null,null,null,null,null,null,null,null,null,null,null,null,null,null,null,null,null,null,null,null,null,null,null,null,null,null,null,null,null,null,null,null,null,null,null,null,null,null,null,null,null,"⑦",null,1,null,null,"二以上勤務"]
[]
[]
[]
[null,null,null,null,null,"④※上記「賞与支払年月日（共通）」と同じ場合は記入不要です。",null,null,null,null,null,null,null,null,null,null,null,null,null,null,null,null,"⑤  ㋐(通貨)",null,null,null,null,null,null,null,null,null,null,"　㋑(現物)",null,null,null,null,null,null,null,null,null,null,null,"⑥(合計㋐+㋑) 千円未満は切捨て",null,null,null,null,null,null,null,null,null,null,null,null,null,null,2,null,null,"同一月内の賞与合算"]
[]
[null,null,null,null,null,"令和",null,null,null,null,null,null,null,null,null,null,null,null,null,null,null,null,null,null,null,null,null,null,null,null,null,null,null,null,null,null,null,null,null,null,null,null,null,null,null,{"$f":"IF(W94=\"\",\"\",ROUNDDOWN((W94+AH94),-3)/1000)","v":""}]
[null,null,null,null,null,null,null,null,null,null,null,"年",null,null,null,null,"月",null,null,null,null,"日",null,null,null,null,null,null,null,null,null,"円",null,null,null,null,null,null,null,null,null,null,null,"円",null,null,null,null,null,null,null,null,null,null,",000",null,null,"円",null,null,null,null,"（初回支払日：",null,null,null,null,null,null,null,null,null,null,null,null,null,null,null,"）"]
[]
[]
[null,null,null,null,null,null,null,null,null,null,null,null,null,null,null,null,null,null,null,null,null,null,null,null,null,null,null,null,null,null,null,null,null,null,null,null,null,null,null,null,null,null,null,null,null,null,null,null,null,null,null,null,null,null,null,null,null,null,"⑦",null,1,null,null,"二以上勤務"]
[]
[]
[]
[null,null,null,null,null,"④※上記「賞与支払年月日（共通）」と同じ場合は記入不要です。",null,null,null,null,null,null,null,null,null,null,null,null,null,null,null,null,"⑤  ㋐(通貨)",null,null,null,null,null,null,null,null,null,null,"　㋑(現物)",null,null,null,null,null,null,null,null,null,null,null,"⑥(合計㋐+㋑) 千円未満は切捨て",null,null,null,null,null,null,null,null,null,null,null,null,null,null,2,null,null,"同一月内の賞与合算"]
[]
[null,null,null,null,null,"令和",null,null,null,null,null,null,null,null,null,null,null,null,null,null,null,null,null,null,null,null,null,null,null,null,null,null,null,null,null,null,null,null,null,null,null,null,null,null,null,{"$f":"IF(W104=\"\",\"\",ROUNDDOWN((W104+AH104),-3)/1000)","v":""}]
[null,null,null,null,null,null,null,null,null,null,null,"年",null,null,null,null,"月",null,null,null,null,"日",null,null,null,null,null,null,null,null,null,"円",null,null,null,null,null,null,null,null,null,null,null,"円",null,null,null,null,null,null,null,null,null,null,",000",null,null,"円",null,null,null,null,"（初回支払日：",null,null,null,null,null,null,null,null,null,null,null,null,null,null,null,"）"]
[]
[]
[null,null,null,null,null,null,null,null,null,null,null,null,null,null,null,null,null,null,null,null,null,null,null,null,null,null,null,null,null,null,null,null,null,null,null,null,null,null,null,null,null,null,null,null,null,null,null,null,null,null,null,null,null,null,null,null,null,null,"⑦",null,1,null,null,"二以上勤務"]
[]
[]
[]
[null,null,null,null,null,"④※上記「賞与支払年月日（共通）」と同じ場合は記入不要です。",null,null,null,null,null,null,null,null,null,null,null,null,null,null,null,null,"⑤  ㋐(通貨)",null,null,null,null,null,null,null,null,null,null,"　㋑(現物)",null,null,null,null,null,null,null,null,null,null,null,"⑥(合計㋐+㋑) 千円未満は切捨て",null,null,null,null,null,null,null,null,null,null,null,null,null,null,2,null,null,"同一月内の賞与合算"]
[]
[null,null,null,null,null,"令和",null,null,null,null,null,null,null,null,null,null,null,null,null,null,null,null,null,null,null,null,null,null,null,null,null,null,null,null,null,null,null,null,null,null,null,null,null,null,null,{"$f":"IF(W114=\"\",\"\",ROUNDDOWN((W114+AH114),-3)/1000)","v":""}]
[null,null,null,null,null,null,null,null,null,null,null,"年",null,null,null,null,"月",null,null,null,null,"日",null,null,null,null,null,null,null,null,null,"円",null,null,null,null,null,null,null,null,null,null,null,"円",null,null,null,null,null,null,null,null,null,null,",000",null,null,"円",null,null,null,null,"（初回支払日：",null,null,null,null,null,null,null,null,null,null,null,null,null,null,null,"）"]
[]
[]
[null,null,null,null,null,null,null,null,null,null,null,null,null,null,null,null,null,null,null,null,null,null,null,null,null,null,null,null,null,null,null,null,null,null,null,null,null,null,null,null,null,null,null,null,null,null,null,null,null,null,null,null,null,null,null,null,null,null,"⑦",null,1,null,null,"二以上勤務"]
[]
[]
[]
[null,null,null,null,null,"④※上記「賞与支払年月日（共通）」と同じ場合は記入不要です。",null,null,null,null,null,null,null,null,null,null,null,null,null,null,null,null,"⑤  ㋐(通貨)",null,null,null,null,null,null,null,null,null,null,"　㋑(現物)",null,null,null,null,null,null,null,null,null,null,null,"⑥(合計㋐+㋑) 千円未満は切捨て",null,null,null,null,null,null,null,null,null,null,null,null,null,null,2,null,null,"同一月内の賞与合算"]
[]
[null,null,null,null,null,"令和",null,null,null,null,null,null,null,null,null,null,null,null,null,null,null,null,null,null,null,null,null,null,null,null,null,null,null,null,null,null,null,null,null,null,null,null,null,null,null,{"$f":"IF(W124=\"\",\"\",ROUNDDOWN((W124+AH124),-3)/1000)","v":""}]
[null,null,null,null,null,null,null,null,null,null,null,"年",null,null,null,null,"月",null,null,null,null,"日",null,null,null,null,null,null,null,null,null,"円",null,null,null,null,null,null,null,null,null,null,null,"円",null,null,null,null,null,null,null,null,null,null,",000",null,null,"円",null,null,null,null,"（初回支払日：",null,null,null,null,null,null,null,null,null,null,null,null,null,null,null,"）"]
[]
[]
[null,null,null,null,null,null,null,null,null,null,null,null,null,null,null,null,null,null,null,null,null,null,null,null,null,null,null,null,null,null,null,null,null,null,null,null,null,null,null,null,null,null,null,null,null,null,null,null,null,null,null,null,null,null,null,null,null,null,"⑦",null,1,null,null,"二以上勤務"]
[]
[]
[]
[null,null,null,null,null,"④※上記「賞与支払年月日（共通）」と同じ場合は記入不要です。",null,null,null,null,null,null,null,null,null,null,null,null,null,null,null,null,"⑤  ㋐(通貨)",null,null,null,null,null,null,null,null,null,null,"　㋑(現物)",null,null,null,null,null,null,null,null,null,null,null,"⑥(合計㋐+㋑) 千円未満は切捨て",null,null,null,null,null,null,null,null,null,null,null,null,null,null,2,null,null,"同一月内の賞与合算"]
[]
[null,null,null,null,null,"令和",null,null,null,null,null,null,null,null,null,null,null,null,null,null,null,null,null,null,null,null,null,null,null,null,null,null,null,null,null,null,null,null,null,null,null,null,null,null,null,{"$f":"IF(W134=\"\",\"\",ROUNDDOWN((W134+AH134),-3)/1000)","v":""}]
[null,null,null,null,null,null,null,null,null,null,null,"年",null,null,null,null,"月",null,null,null,null,"日",null,null,null,null,null,null,null,null,null,"円",null,null,null,null,null,null,null,null,null,null,null,"円",null,null,null,null,null,null,null,null,null,null,",000",null,null,"円",null,null,null,null,"（初回支払日：",null,null,null,null,null,null,null,null,null,null,null,null,null,null,null,"）"]
[]
[]
[null,null,null,null,null,null,null,null,null,null,null,null,null,null,null,null,null,null,null,null,null,null,null,null,null,null,null,null,null,null,null,null,null,null,null,null,null,null,null,null,null,null,null,null,null,null,null,null,null,null,null,null,null,null,null,null,null,null,"⑦",null,1,null,null,"二以上勤務"]
[]
[]
[]
[null,null,null,null,null,"④※上記「賞与支払年月日（共通）」と同じ場合は記入不要です。",null,null,null,null,null,null,null,null,null,null,null,null,null,null,null,null,"⑤  ㋐(通貨)",null,null,null,null,null,null,null,null,null,null,"　㋑(現物)",null,null,null,null,null,null,null,null,null,null,null,"⑥(合計㋐+㋑) 千円未満は切捨て",null,null,null,null,null,null,null,null,null,null,null,null,null,null,2,null,null,"同一月内の賞与合算"]
[]
[null,null,null,null,null,"令和",null,null,null,null,null,null,null,null,null,null,null,null,null,null,null,null,null,null,null,null,null,null,null,null,null,null,null,null,null,null,null,null,null,null,null,null,null,null,null,{"$f":"IF(W144=\"\",\"\",ROUNDDOWN((W144+AH144),-3)/1000)","v":""}]
[null,null,null,null,null,null,null,null,null,null,null,"年",null,null,null,null,"月",null,null,null,null,"日",null,null,null,null,null,null,null,null,null,"円",null,null,null,null,null,null,null,null,null,null,null,"円",null,null,null,null,null,null,null,null,null,null,",000",null,null,"円",null,null,null,null,"（初回支払日：",null,null,null,null,null,null,null,null,null,null,null,null,null,null,null,"）"]
[]
[]
[null,null,null,null,null,null,null,null,null,null,null,null,null,null,null,null,null,null,null,null,null,null,null,null,null,null,null,null,null,null,null,null,null,null,null,null,null,null,null,null,null,null,null,null,null,null,null,null,null,null,null,null,null,null,null,null,null,null,"⑦",null,1,null,null,"二以上勤務"]
[]
[]
[]
[null,null,null,null,null,"④※上記「賞与支払年月日（共通）」と同じ場合は記入不要です。",null,null,null,null,null,null,null,null,null,null,null,null,null,null,null,null,"⑤  ㋐(通貨)",null,null,null,null,null,null,null,null,null,null,"　㋑(現物)",null,null,null,null,null,null,null,null,null,null,null,"⑥(合計㋐+㋑) 千円未満は切捨て",null,null,null,null,null,null,null,null,null,null,null,null,null,null,2,null,null,"同一月内の賞与合算"]
[]
[null,null,null,null,null,"令和",null,null,null,null,null,null,null,null,null,null,null,null,null,null,null,null,null,null,null,null,null,null,null,null,null,null,null,null,null,null,null,null,null,null,null,null,null,null,null,{"$f":"IF(W154=\"\",\"\",ROUNDDOWN((W154+AH154),-3)/1000)","v":""}]
[null,null,null,null,null,null,null,null,null,null,null,"年",null,null,null,null,"月",null,null,null,null,"日",null,null,null,null,null,null,null,null,null,"円",null,null,null,null,null,null,null,null,null,null,null,"円",null,null,null,null,null,null,null,null,null,null,",000",null,null,"円",null,null,null,null,"（初回支払日：",null,null,null,null,null,null,null,null,null,null,null,null,null,null,null,"）"]
[]
[]
[]
[null,null,null,null,null,null,null,null,null,null,null,null,null,null,null,null,null,null,null,null,null,null,null,null,null,null,null,null,null,null,null,null,null,null,null,null,null,null,null,null,null,null,null,null,null,null,null,null,null,null,null,null,null,null,null,null,null,null,null,null,null,null,"受　　付　　印"]

{"sheet":"賞与支払届 (2)","index":2,"n_rows":158,"n_cols":84,"rows_kept":158,"cut":false,"hidden":true,"merged":[[2,73,4,77],[2,78,4,82],[6,15,8,22],[6,26,8,47],[10,8,12,9],[10,10,12,12],[10,13,12,14],[10,15,12,17],[10,18,12,19],[2,14,5,22],[2,23,5,48],[2,51,4,56],[2,57,4,62],[2,63,4,67],[2,68,4,72],[26,4,33,10],[26,11,33,40],[33,44,35,63],[34,5,39,10],[34,11,39,32],[35,33,41,40],[36,44,37,63],[38,44,41,77],[14,5,25,10],[14,11,15,28],[14,43,17,54],[16,11,17,12],[16,13,17,17],[16,18,17,19],[16,20,17,26],[18,11,25,40],[20,43,22,54],[43,60,49,81],[47,5,49,21],[47,22,49,44],[47,45,49,57],[38,78,40,80],[40,5,41,10],[40,13,41,17],[40,18,41,18],[40,19,41,24],[40,25,41,25],[40,26,41,30],[51,5,54,21],[51,22,54,44],[56,5,59,21],[56,22,59,44],[56,45,59,57],[56,58,57,59],[43,5,46,21],[43,22,46,44],[43,45,46,57],[60,5,61,21],[60,22,62,26],[60,33,62,37],[60,45,61,56],[60,60,62,60],[60,61,62,62],[60,63,62,74],[62,5,64,7],[62,45,64,53],[63,8,64,10],[63,11,64,12],[63,13,64,15],[63,16,64,17],[63,18,64,20],[63,21,64,21],[63,22,64,30],[63,69,64,77],[66,63,68,81],[63,31,64,32],[63,33,64,42],[63,43,64,44],[63,54,64,56],[63,57,64,57],[63,62,64,68],[56,60,58,60],[56,61,58,62],[56,63,58,81],[59,58,60,59],[63,78,64,79],[63,80,64,80],[70,61,72,62],[70,63,72,74],[72,5,74,7],[72,45,74,53],[73,8,74,10],[73,11,74,12],[73,13,74,15],[73,16,74,17],[73,18,74,20],[73,21,74,21],[69,58,70,59],[70,5,71,21],[70,22,72,26],[70,33,72,37],[70,45,71,56],[70,60,72,60],[73,62,74,68],[73,69,74,77],[66,5,69,21],[66,22,69,44],[66,45,69,57],[66,58,67,59],[66,60,68,60],[66,61,68,62],[73,78,74,79],[73,80,74,80],[76,5,79,21],[76,22,79,44],[76,45,79,57],[76,58,77,59],[76,60,78,60],[76,61,78,62],[73,22,74,30],[73,31,74,32],[73,33,74,42],[73,43,74,44],[73,54,74,56],[73,57,74,57],[76,63,78,81],[79,58,80,59],[80,5,81,21],[80,22,82,26],[80,33,82,37],[80,45,81,56],[80,60,82,60],[80,61,82,62],[80,63,82,74],[82,5,84,7],[83,8,84,10],[83,11,84,12],[83,13,84,15],[83,16,84,17],[83,18,84,20],[83,21,84,21],[83,22,84,30],[83,31,84,32],[83,33,84,42],[86,5,89,21],[86,22,89,44],[86,45,89,57],[86,58,87,59],[86,60,88,60],[86,61,88,62],[86,63,88,81],[89,58,90,59],[90,5,91,21],[83,80,84,80],[83,43,84,44],[83,54,84,56],[83,57,84,57],[83,62,84,68],[83,69,84,77],[83,78,84,79],[82,45,84,53],[93,78,94,79],[93,80,94,80],[92,5,94,7],[92,45,94,53],[93,8,94,10],[93,11,94,12],[93,13,94,15],[93,16,94,17],[93,18,94,20],[93,21,94,21],[100,63,102,74],[102,5,104,7],[93,22,94,30],[93,31,94,32],[90,22,92,26],[90,33,92,37],[90,45,91,56],[90,60,92,60],[90,61,92,62],[90,63,92,74],[96,58,97,59],[96,60,98,60],[96,61,98,62],[96,63,98,81],[99,58,100,59],[93,33,94,42],[93,43,94,44],[93,54,94,56],[93,57,94,57],[93,62,94,68],[93,69,94,77],[103,21,104,21],[103,22,104,30],[100,5,101,21],[100,22,102,26],[100,33,102,37],[100,45,101,56],[96,5,99,21],[96,22,99,44],[96,45,99,57],[100,60,102,60],[100,61,102,62],[103,69,104,77],[103,78,104,79],[103,80,104,80],[106,5,109,21],[106,22,109,44],[106,45,109,57],[106,58,107,59],[106,60,108,60],[106,61,108,62],[106,63,108,81],[103,31,104,32],[103,33,104,42],[103,43,104,44],[103,54,104,56],[103,57,104,57],[103,62,104,68],[102,45,104,53],[103,8,104,10],[103,11,104,12],[103,13,104,15],[103,16,104,17],[103,18,104,20],[110,61,112,62],[110,63,112,74],[112,5,114,7],[112,45,114,53],[113,8,114,10],[113,11,114,12],[113,13,114,15],[113,16,114,17],[113,18,114,20],[113,21,114,21],[109,58,110,59],[110,5,111,21],[110,22,112,26],[110,33,112,37],[110,45,111,56],[110,60,112,60],[113,62,114,68],[113,69,114,77],[113,78,114,79],[113,80,114,80],[116,5,119,21],[116,22,119,44],[116,45,119,57],[116,58,117,59],[116,60,118,60],[116,61,118,62],[113,22,114,30],[113,31,114,32],[113,33,114,42],[113,43,114,44],[113,54,114,56],[113,57,114,57],[116,63,118,81],[119,58,120,59],[120,5,121,21],[120,22,122,26],[120,33,122,37],[120,45,121,56],[120,60,122,60],[120,61,122,62],[120,63,122,74],[122,5,124,7],[123,8,124,10],[123,11,124,12],[123,13,124,15],[123,16,124,17],[123,18,124,20],[123,21,124,21],[123,22,124,30],[123,31,124,32],[123,33,124,42],[126,5,129,21],[126,22,129,44],[126,45,129,57],[126,58,127,59],[126,60,128,60],[126,61,128,62],[126,63,128,81],[129,58,130,59],[130,5,131,21],[133,22,134,30],[133,31,134,32],[130,22,132,26],[130,33,132,37],[130,45,131,56],[130,60,132,60],[130,61,132,62],[130,63,132,74],[123,80,124,80],[123,43,124,44],[123,54,124,56],[123,57,124,57],[123,62,124,68],[123,69,124,77],[123,78,124,79],[122,45,124,53],[133,78,134,79],[133,80,134,80],[136,5,139,21],[136,22,139,44],[136,45,139,57],[136,58,137,59],[136,60,138,60],[136,61,138,62],[136,63,138,81],[139,58,140,59],[133,33,134,42],[133,43,134,44],[133,54,134,56],[133,57,134,57],[133,62,134,68],[133,69,134,77],[132,5,134,7],[132,45,134,53],[133,8,134,10],[133,11,134,12],[133,13,134,15],[133,16,134,17],[133,18,134,20],[133,21,134,21],[140,63,142,74],[142,5,144,7],[140,60,142,60],[140,61,142,62],[150,5,151,21],[150,22,152,26],[150,33,152,37],[150,45,151,56],[150,60,152,60],[143,69,144,77],[143,78,144,79],[142,45,144,53],[143,8,144,10],[143,11,144,12],[143,13,144,15],[143,16,144,17],[143,18,144,20],[143,21,144,21],[143,22,144,30],[140,5,141,21],[140,22,142,26],[140,33,142,37],[140,45,141,56],[143,80,144,80],[146,5,149,21],[146,22,149,44],[146,45,149,57],[146,58,147,59],[146,60,148,60],[146,61,148,62],[146,63,148,81],[143,31,144,32],[143,33,144,42],[143,43,144,44],[143,54,144,56],[143,57,144,57],[143,62,144,68],[153,62,154,68],[153,69,154,77],[153,78,154,79],[153,80,154,80],[157,62,159,71],[10,1,12,4],[10,5,12,7],[153,22,154,30],[153,31,154,32],[153,33,154,42],[153,43,154,44],[153,54,154,56],[153,57,154,57],[150,61,152,62],[150,63,152,74],[152,5,154,7],[152,45,154,53],[153,8,154,10],[153,11,154,12],[153,13,154,15],[153,16,154,17],[153,18,154,20],[153,21,154,21],[149,58,150,59]]}
[1,null,null,null,null,null,null,null,null,null,null,null,null,null,null,null,null,null,null,null,null,null,null,null,null,null,null,null,null,null,null,null,null,null,null,null,null,null,null,null,null,null,null,null,null,null,null,null,null,null,null,null,null,null,null,null,null,null,null,null,null,null,null,null,null,null,null,null,null,null,null,null,null,null,null,null,null,null,null,null,null,null,null,1]
[]
[null,null,null,null,null,null,null,null,null,null,null,null,null,null,"健康保険",null,null,null,null,null,null,null,null,"被保険者賞与支払届",null,null,null,null,null,null,null,null,null,null,null,null,null,null,null,null,null,null,null,null,null,null,null,null,null,null,null,"常務理事",null,null,null,null,null,"事務(局)長",null,null,null,null,null,"部　長",null,null,null,null,"課　長",null,null,null,null,"課長補佐",null,null,null,null,"担当者"]
[]
[]
[]
[]
[]
[]
[]
[null,"令和",null,null,null,6,null,null,"年",null,11,null,null,"月",null,15,null,null,"日"]
[]
[]
[]
[null,null,null,null,null,"事業所\n所在地",null,null,null,null,null,null,null,null,null,null,null,null,null,null,null,null,null,null,null,null,null,null,null,null,null,null,null,null,null,null,null,null,null,null,null,null,null,"健康保険の記号"]
[]
[null,null,null,null,null,null,null,null,null,null,null,"〒",null,"101",null,null,null,null,"―",null,"0032"]
[]
[null,null,null,null,null,null,null,null,null,null,null,"東京都千代田区〇〇町一丁目〇〇番〇〇号"]
[]
[null,null,null,null,null,null,null,null,null,null,null,null,null,null,null,null,null,null,null,null,null,null,null,null,null,null,null,null,null,null,null,null,null,null,null,null,null,null,null,null,null,null,null,111]
[]
[]
[]
[]
[]
[null,null,null,null,"事業所\n名　称",null,null,null,null,null,null,"〇△〇△金属工業㈱"]
[]
[]
[]
[]
[]
[]
[null,null,null,null,null,null,null,null,null,null,null,null,null,null,null,null,null,null,null,null,null,null,null,null,null,null,null,null,null,null,null,null,null,null,null,null,null,null,null,null,null,null,null,null,"社会保険労務士記載欄"]
[null,null,null,null,null,"事業主\n氏　名",null,null,null,null,null,"金属　健太郎"]
[]
[null,null,null,null,null,null,null,null,null,null,null,null,null,null,null,null,null,null,null,null,null,null,null,null,null,null,null,null,null,null,null,null,null,null,null,null,null,null,null,null,null,null,null,null,"　　氏　　名　　等"]
[]
[]
[]
[null,null,null,null,null,"電話番号",null,null,null,null,null,null,null,"03",null,null,null,null,null,"6666",null,null,null,null,null,null,"5555"]
[]
[]
[null,null,null,null,null,"①　健康保険被保険者等番号",null,null,null,null,null,null,null,null,null,null,null,null,null,null,null,null,"②　被保険者氏名",null,null,null,null,null,null,null,null,null,null,null,null,null,null,null,null,null,null,null,null,null,null,"③　生年月日",null,null,null,null,null,null,null,null,null,null,null,null,null,null,"⑦　備考"]
[]
[]
[]
[null,null,null,null,null,"④　賞与支払年月日",null,null,null,null,null,null,null,null,null,null,null,null,null,null,null,null,"⑤　賞与支払額",null,null,null,null,null,null,null,null,null,null,null,null,null,null,null,null,null,null,null,null,null,null,"⑥　賞与額（千円未満は切捨て）"]
[]
[]
[]
[null,null,null,null,null,"④　賞与支払年月日（共通）",null,null,null,null,null,null,null,null,null,null,null,null,null,null,null,null,"2024-06-25"]
[]
[]
[]
[]
[null,null,null,null,null,2,null,null,null,null,null,null,null,null,null,null,null,null,null,null,null,null,"東金　次郎",null,null,null,null,null,null,null,null,null,null,null,null,null,null,null,null,null,null,null,null,null,null,"1996-10-01",null,null,null,null,null,null,null,null,null,null,null,null,"⑦",null,1,null,null,"二以上勤務"]
[]
[]
[]
[null,null,null,null,null,"④※上記「賞与支払年月日（共通）」と同じ場合は記入不要です。",null,null,null,null,null,null,null,null,null,null,null,null,null,null,null,null,"⑤  ㋐(通貨)",null,null,null,null,null,null,null,null,null,null," ㋑(現物)",null,null,null,null,null,null,null,null,null,null,null,"⑥(合計㋐+㋑) 千円未満は切捨て",null,null,null,null,null,null,null,null,null,null,null,null,null,null,2,null,null,"同一月内の賞与合算"]
[]
[null,null,null,null,null,"令和",null,null,null,null,null,null,null,null,null,null,null,null,null,null,null,null,null,null,null,null,null,null,null,null,null,null,null,null,null,null,null,null,null,null,null,null,null,null,null,{"$f":"IF(W64=\"\",\"\",ROUNDDOWN((W64+AH64),-3)/1000)","v":500}]
[null,null,null,null,null,null,null,null,6,null,null,"年",null,6,null,null,"月",null,15,null,null,"日",500000,null,null,null,null,null,null,null,null,"円",null,null,null,null,null,null,null,null,null,null,null,"円",null,null,null,null,null,null,null,null,null,null,",000",null,null,"円",null,null,null,null,"（初回支払日：",null,null,null,null,null,null,null,null,null,null,null,null,null,null,null,"）"]
[]
[]
[null,null,null,null,null,2,null,null,null,null,null,null,null,null,null,null,null,null,null,null,null,null,"東金　次郎",null,null,null,null,null,null,null,null,null,null,null,null,null,null,null,null,null,null,null,null,null,null,"1996-10-01",null,null,null,null,null,null,null,null,null,null,null,null,"⑦",null,1,null,null,"二以上勤務"]
[]
[]
[]
[null,null,null,null,null,"④※上記「賞与支払年月日（共通）」と同じ場合は記入不要です。",null,null,null,null,null,null,null,null,null,null,null,null,null,null,null,null,"⑤  ㋐(通貨)",null,null,null,null,null,null,null,null,null,null," ㋑(現物)",null,null,null,null,null,null,null,null,null,null,null,"⑥(合計㋐+㋑) 千円未満は切捨て",null,null,null,null,null,null,null,null,null,null,null,null,null,null,2,null,null,"同一月内の賞与合算"]
[]
[null,null,null,null,null,"令和",null,null,null,null,null,null,null,null,null,null,null,null,null,null,null,null,null,null,null,null,null,null,null,null,null,null,null,null,null,null,null,null,null,null,null,null,null,null,null,{"$f":"IF(W74=\"\",\"\",ROUNDDOWN((W74+AH74),-3)/1000)","v":500}]
[null,null,null,null,null,null,null,null,6,null,null,"年",null,6,null,null,"月",null,20,null,null,"日",500000,null,null,null,null,null,null,null,null,"円",null,null,null,null,null,null,null,null,null,null,null,"円",null,null,null,null,null,null,null,null,null,null,",000",null,null,"円",null,null,null,null,"（初回支払日：",null,null,null,null,null,null,null,null,null,null,null,null,null,null,null,"）"]
[]
[]
[null,null,null,null,null,null,null,null,null,null,null,null,null,null,null,null,null,null,null,null,null,null,null,null,null,null,null,null,null,null,null,null,null,null,null,null,null,null,null,null,null,null,null,null,null,null,null,null,null,null,null,null,null,null,null,null,null,null,"⑦",null,1,null,null,"二以上勤務"]
[]
[]
[]
[null,null,null,null,null,"④※上記「賞与支払年月日（共通）」と同じ場合は記入不要です。",null,null,null,null,null,null,null,null,null,null,null,null,null,null,null,null,"⑤  ㋐(通貨)",null,null,null,null,null,null,null,null,null,null,"　㋑(現物)",null,null,null,null,null,null,null,null,null,null,null,"⑥(合計㋐+㋑) 千円未満は切捨て",null,null,null,null,null,null,null,null,null,null,null,null,null,null,2,null,null,"同一月内の賞与合算"]
[]
[null,null,null,null,null,"令和",null,null,null,null,null,null,null,null,null,null,null,null,null,null,null,null,null,null,null,null,null,null,null,null,null,null,null,null,null,null,null,null,null,null,null,null,null,null,null,{"$f":"IF(W84=\"\",\"\",ROUNDDOWN((W84+AH84),-3)/1000)","v":""}]
[null,null,null,null,null,null,null,null,null,null,null,"年",null,null,null,null,"月",null,null,null,null,"日",null,null,null,null,null,null,null,null,null,"円",null,null,null,null,null,null,null,null,null,null,null,"円",null,null,null,null,null,null,null,null,null,null,",000",null,null,"円",null,null,null,null,"（初回支払日：",null,null,null,null,null,null,null,null,null,null,null,null,null,null,null,"）"]
[]
[]
[null,null,null,null,null,null,null,null,null,null,null,null,null,null,null,null,null,null,null,null,null,null,null,null,null,null,null,null,null,null,null,null,null,null,null,null,null,null,null,null,null,null,null,null,null,null,null,null,null,null,null,null,null,null,null,null,null,null,"⑦",null,1,null,null,"二以上勤務"]
[]
[]
[]
[null,null,null,null,null,"④※上記「賞与支払年月日（共通）」と同じ場合は記入不要です。",null,null,null,null,null,null,null,null,null,null,null,null,null,null,null,null,"⑤  ㋐(通貨)",null,null,null,null,null,null,null,null,null,null,"　㋑(現物)",null,null,null,null,null,null,null,null,null,null,null,"⑥(合計㋐+㋑) 千円未満は切捨て",null,null,null,null,null,null,null,null,null,null,null,null,null,null,2,null,null,"同一月内の賞与合算"]
[]
[null,null,null,null,null,"令和",null,null,null,null,null,null,null,null,null,null,null,null,null,null,null,null,null,null,null,null,null,null,null,null,null,null,null,null,null,null,null,null,null,null,null,null,null,null,null,{"$f":"IF(W94=\"\",\"\",ROUNDDOWN((W94+AH94),-3)/1000)","v":""}]
[null,null,null,null,null,null,null,null,null,null,null,"年",null,null,null,null,"月",null,null,null,null,"日",null,null,null,null,null,null,null,null,null,"円",null,null,null,null,null,null,null,null,null,null,null,"円",null,null,null,null,null,null,null,null,null,null,",000",null,null,"円",null,null,null,null,"（初回支払日：",null,null,null,null,null,null,null,null,null,null,null,null,null,null,null,"）"]
[]
[]
[null,null,null,null,null,null,null,null,null,null,null,null,null,null,null,null,null,null,null,null,null,null,null,null,null,null,null,null,null,null,null,null,null,null,null,null,null,null,null,null,null,null,null,null,null,null,null,null,null,null,null,null,null,null,null,null,null,null,"⑦",null,1,null,null,"二以上勤務"]
[]
[]
[]
[null,null,null,null,null,"④※上記「賞与支払年月日（共通）」と同じ場合は記入不要です。",null,null,null,null,null,null,null,null,null,null,null,null,null,null,null,null,"⑤  ㋐(通貨)",null,null,null,null,null,null,null,null,null,null,"　㋑(現物)",null,null,null,null,null,null,null,null,null,null,null,"⑥(合計㋐+㋑) 千円未満は切捨て",null,null,null,null,null,null,null,null,null,null,null,null,null,null,2,null,null,"同一月内の賞与合算"]
[]
[null,null,null,null,null,"令和",null,null,null,null,null,null,null,null,null,null,null,null,null,null,null,null,null,null,null,null,null,null,null,null,null,null,null,null,null,null,null,null,null,null,null,null,null,null,null,{"$f":"IF(W104=\"\",\"\",ROUNDDOWN((W104+AH104),-3)/1000)","v":""}]
[null,null,null,null,null,null,null,null,null,null,null,"年",null,null,null,null,"月",null,null,null,null,"日",null,null,null,null,null,null,null,null,null,"円",null,null,null,null,null,null,null,null,null,null,null,"円",null,null,null,null,null,null,null,null,null,null,",000",null,null,"円",null,null,null,null,"（初回支払日：",null,null,null,null,null,null,null,null,null,null,null,null,null,null,null,"）"]
[]
[]
[null,null,null,null,null,null,null,null,null,null,null,null,null,null,null,null,null,null,null,null,null,null,null,null,null,null,null,null,null,null,null,null,null,null,null,null,null,null,null,null,null,null,null,null,null,null,null,null,null,null,null,null,null,null,null,null,null,null,"⑦",null,1,null,null,"二以上勤務"]
[]
[]
[]
[null,null,null,null,null,"④※上記「賞与支払年月日（共通）」と同じ場合は記入不要です。",null,null,null,null,null,null,null,null,null,null,null,null,null,null,null,null,"⑤  ㋐(通貨)",null,null,null,null,null,null,null,null,null,null,"　㋑(現物)",null,null,null,null,null,null,null,null,null,null,null,"⑥(合計㋐+㋑) 千円未満は切捨て",null,null,null,null,null,null,null,null,null,null,null,null,null,null,2,null,null,"同一月内の賞与合算"]
[]
[null,null,null,null,null,"令和",null,null,null,null,null,null,null,null,null,null,null,null,null,null,null,null,null,null,null,null,null,null,null,null,null,null,null,null,null,null,null,null,null,null,null,null,null,null,null,{"$f":"IF(W114=\"\",\"\",ROUNDDOWN((W114+AH114),-3)/1000)","v":""}]
[null,null,null,null,null,null,null,null,null,null,null,"年",null,null,null,null,"月",null,null,null,null,"日",null,null,null,null,null,null,null,null,null,"円",null,null,null,null,null,null,null,null,null,null,null,"円",null,null,null,null,null,null,null,null,null,null,",000",null,null,"円",null,null,null,null,"（初回支払日：",null,null,null,null,null,null,null,null,null,null,null,null,null,null,null,"）"]
[]
[]
[null,null,null,null,null,null,null,null,null,null,null,null,null,null,null,null,null,null,null,null,null,null,null,null,null,null,null,null,null,null,null,null,null,null,null,null,null,null,null,null,null,null,null,null,null,null,null,null,null,null,null,null,null,null,null,null,null,null,"⑦",null,1,null,null,"二以上勤務"]
[]
[]
[]
[null,null,null,null,null,"④※上記「賞与支払年月日（共通）」と同じ場合は記入不要です。",null,null,null,null,null,null,null,null,null,null,null,null,null,null,null,null,"⑤  ㋐(通貨)",null,null,null,null,null,null,null,null,null,null,"　㋑(現物)",null,null,null,null,null,null,null,null,null,null,null,"⑥(合計㋐+㋑) 千円未満は切捨て",null,null,null,null,null,null,null,null,null,null,null,null,null,null,2,null,null,"同一月内の賞与合算"]
[]
[null,null,null,null,null,"令和",null,null,null,null,null,null,null,null,null,null,null,null,null,null,null,null,null,null,null,null,null,null,null,null,null,null,null,null,null,null,null,null,null,null,null,null,null,null,null,{"$f":"IF(W124=\"\",\"\",ROUNDDOWN((W124+AH124),-3)/1000)","v":""}]
[null,null,null,null,null,null,null,null,null,null,null,"年",null,null,null,null,"月",null,null,null,null,"日",null,null,null,null,null,null,null,null,null,"円",null,null,null,null,null,null,null,null,null,null,null,"円",null,null,null,null,null,null,null,null,null,null,",000",null,null,"円",null,null,null,null,"（初回支払日：",null,null,null,null,null,null,null,null,null,null,null,null,null,null,null,"）"]
[]
[]
[null,null,null,null,null,null,null,null,null,null,null,null,null,null,null,null,null,null,null,null,null,null,null,null,null,null,null,null,null,null,null,null,null,null,null,null,null,null,null,null,null,null,null,null,null,null,null,null,null,null,null,null,null,null,null,null,null,null,"⑦",null,1,null,null,"二以上勤務"]
[]
[]
[]
[null,null,null,null,null,"④※上記「賞与支払年月日（共通）」と同じ場合は記入不要です。",null,null,null,null,null,null,null,null,null,null,null,null,null,null,null,null,"⑤  ㋐(通貨)",null,null,null,null,null,null,null,null,null,null,"　㋑(現物)",null,null,null,null,null,null,null,null,null,null,null,"⑥(合計㋐+㋑) 千円未満は切捨て",null,null,null,null,null,null,null,null,null,null,null,null,null,null,2,null,null,"同一月内の賞与合算"]
[]
[null,null,null,null,null,"令和",null,null,null,null,null,null,null,null,null,null,null,null,null,null,null,null,null,null,null,null,null,null,null,null,null,null,null,null,null,null,null,null,null,null,null,null,null,null,null,{"$f":"IF(W134=\"\",\"\",ROUNDDOWN((W134+AH134),-3)/1000)","v":""}]
[null,null,null,null,null,null,null,null,null,null,null,"年",null,null,null,null,"月",null,null,null,null,"日",null,null,null,null,null,null,null,null,null,"円",null,null,null,null,null,null,null,null,null,null,null,"円",null,null,null,null,null,null,null,null,null,null,",000",null,null,"円",null,null,null,null,"（初回支払日：",null,null,null,null,null,null,null,null,null,null,null,null,null,null,null,"）"]
[]
[]
[null,null,null,null,null,null,null,null,null,null,null,null,null,null,null,null,null,null,null,null,null,null,null,null,null,null,null,null,null,null,null,null,null,null,null,null,null,null,null,null,null,null,null,null,null,null,null,null,null,null,null,null,null,null,null,null,null,null,"⑦",null,1,null,null,"二以上勤務"]
[]
[]
[]
[null,null,null,null,null,"④※上記「賞与支払年月日（共通）」と同じ場合は記入不要です。",null,null,null,null,null,null,null,null,null,null,null,null,null,null,null,null,"⑤  ㋐(通貨)",null,null,null,null,null,null,null,null,null,null,"　㋑(現物)",null,null,null,null,null,null,null,null,null,null,null,"⑥(合計㋐+㋑) 千円未満は切捨て",null,null,null,null,null,null,null,null,null,null,null,null,null,null,2,null,null,"同一月内の賞与合算"]
[]
[null,null,null,null,null,"令和",null,null,null,null,null,null,null,null,null,null,null,null,null,null,null,null,null,null,null,null,null,null,null,null,null,null,null,null,null,null,null,null,null,null,null,null,null,null,null,{"$f":"IF(W144=\"\",\"\",ROUNDDOWN((W144+AH144),-3)/1000)","v":""}]
[null,null,null,null,null,null,null,null,null,null,null,"年",null,null,null,null,"月",null,null,null,null,"日",null,null,null,null,null,null,null,null,null,"円",null,null,null,null,null,null,null,null,null,null,null,"円",null,null,null,null,null,null,null,null,null,null,",000",null,null,"円",null,null,null,null,"（初回支払日：",null,null,null,null,null,null,null,null,null,null,null,null,null,null,null,"）"]
[]
[]
[null,null,null,null,null,null,null,null,null,null,null,null,null,null,null,null,null,null,null,null,null,null,null,null,null,null,null,null,null,null,null,null,null,null,null,null,null,null,null,null,null,null,null,null,null,null,null,null,null,null,null,null,null,null,null,null,null,null,"⑦",null,1,null,null,"二以上勤務"]
[]
[]
[]
[null,null,null,null,null,"④※上記「賞与支払年月日（共通）」と同じ場合は記入不要です。",null,null,null,null,null,null,null,null,null,null,null,null,null,null,null,null,"⑤  ㋐(通貨)",null,null,null,null,null,null,null,null,null,null,"　㋑(現物)",null,null,null,null,null,null,null,null,null,null,null,"⑥(合計㋐+㋑) 千円未満は切捨て",null,null,null,null,null,null,null,null,null,null,null,null,null,null,2,null,null,"同一月内の賞与合算"]
[]
[null,null,null,null,null,"令和",null,null,null,null,null,null,null,null,null,null,null,null,null,null,null,null,null,null,null,null,null,null,null,null,null,null,null,null,null,null,null,null,null,null,null,null,null,null,null,{"$f":"IF(W154=\"\",\"\",ROUNDDOWN((W154+AH154),-3)/1000)","v":""}]
[null,null,null,null,null,null,null,null,null,null,null,"年",null,null,null,null,"月",null,null,null,null,"日",null,null,null,null,null,null,null,null,null,"円",null,null,null,null,null,null,null,null,null,null,null,"円",null,null,null,null,null,null,null,null,null,null,",000",null,null,"円",null,null,null,null,"（初回支払日：",null,null,null,null,null,null,null,null,null,null,null,null,null,null,null,"）"]
[]
[]
[]
[null,null,null,null,null,null,null,null,null,null,null,null,null,null,null,null,null,null,null,null,null,null,null,null,null,null,null,null,null,null,null,null,null,null,null,null,null,null,null,null,null,null,null,null,null,null,null,null,null,null,null,null,null,null,null,null,null,null,null,null,null,null,"受　　付　　印"]